{"text_format":"3","workbook":"xlsx","n_sheets":3,"sheets":["Havi költségvetési jelentés","Havi kiadások","További adatok"],"not_rendered":{"charts":1,"defined_names":4,"pivot_tables":2},"read":"whole","date_system":"1900"}

{"sheet":"Havi költségvetési jelentés","index":0,"n_rows":34,"n_cols":14,"rows_kept":34,"merged":[[7,1,10,1],[7,5,10,5],[7,6,10,6],[12,1,16,1],[12,5,16,5],[12,6,16,6]]}
[null,"Költségvetés áttekintése",{"$nulls":7},"Költségvetés összegzése"]
[null,"Egyenleg"]
[null,"Tervezett egyenleg","(Tervezett mínusz kiadások)",{"$nulls":3},{"$f":"D17-SUM(KöltségvetésRészletei[Tervezett költség])","v":{"v":1585,"d":"1,585 Ft"}}]
[null,"Tényleges egyenleg ","(Tényleges mínusz kiadások)",{"$nulls":3},{"$f":"D11-SUM(KöltségvetésRészletei[Tényleges költség])","v":{"v":1740,"d":"1,740 Ft"}}]
[null,"Különbözet","(Tényleges mínusz tervezett)",{"$nulls":3},{"$f":"G4-G3","v":{"v":155,"d":"155 Ft"}}]
[]
[null,"Bevétel",{"$nulls":3},"Kiadások",{"$nulls":3},"A jobb egérgombbal kattintson a lentebb látható kimutatásra, majd a frissítés kattintson a Frissítés gombra"]
[null,"TÉNYLEGES","Bevétel 1",{"v":5800,"d":"5,800 Ft"},null,"TÉNYLEGES",{"$f":"SUM(KöltségvetésRészletei[Tényleges költség])","v":{"v":7860,"d":"7,860 Ft"}}]
[null,null,"Bevétel 2",{"v":2300,"d":"2,300 Ft"},{"$nulls":6},"Kategória","Tervezett költség ","Tényleges költség ","Különbözet "]
[null,null,"Plusz bevétel",{"v":1500,"d":"1,500 Ft"},{"$nulls":6},"Adók",{"v":300,"d":"300 Ft"},{"v":300,"d":"300 Ft"},{"v":0,"d":"0 Ft"}]
[null,null,"Összes bevétel",{"$f":"SUM(D8:D10)","v":{"v":9600,"d":"9,600 Ft"}}]
[{"$nulls":10},"Ajándék és jótékonyság",{"v":100,"d":"100 Ft"},{"v":125,"d":"125 Ft"},{"v":-25,"d":"-25 Ft"}]
[null,"TERVEZETT",{"$nulls":3},"TERVEZETT",{"$f":"SUM(KöltségvetésRészletei[Tervezett költség])","v":{"v":7915,"d":"7,915 Ft"}}]
[null,null,"Bevétel 1",{"v":6000,"d":"6,000 Ft"},{"$nulls":6},"Biztosítás",{"v":900,"d":"900 Ft"},{"v":900,"d":"900 Ft"},{"v":0,"d":"0 Ft"}]
[null,null,"Bevétel 2",{"v":1000,"d":"1,000 Ft"}]
[null,null,"Plusz bevétel",{"v":2500,"d":"2,500 Ft"},{"$nulls":6},"Étel",{"v":1100,"d":"1,100 Ft"},{"v":1320,"d":"1,320 Ft"},{"v":-220,"d":"-220 Ft"}]
[null,null,"Összes bevétel",{"$f":"SUM(D14:D16)","v":{"v":9500,"d":"9,500 Ft"}}]
[{"$nulls":10},"Gyerekek",{"v":140,"d":"140 Ft"},{"v":140,"d":"140 Ft"},{"v":0,"d":"0 Ft"}]
[]
[{"$nulls":10},"Háziállatok",{"v":170,"d":"170 Ft"},{"v":100,"d":"100 Ft"},{"v":70,"d":"70 Ft"}]
[]
[{"$nulls":10},"Hitelek",{"v":200,"d":"200 Ft"},{"v":200,"d":"200 Ft"},{"v":0,"d":"0 Ft"}]
[]
[{"$nulls":10},"Kozmetikumok",{"v":150,"d":"150 Ft"},{"v":140,"d":"140 Ft"},{"v":10,"d":"10 Ft"}]
[]
[{"$nulls":10},"Közlekedés",{"v":1425,"d":"1,425 Ft"},{"v":1375,"d":"1,375 Ft"},{"v":50,"d":"50 Ft"}]
[]
[{"$nulls":10},"Megtakarítások és befektetések",{"v":200,"d":"200 Ft"},{"v":200,"d":"200 Ft"},{"v":0,"d":"0 Ft"}]
[]
[{"$nulls":10},"Szállás",{"v":2830,"d":"2,830 Ft"},{"v":2702,"d":"2,702 Ft"},{"v":128,"d":"128 Ft"}]
[]
[{"$nulls":10},"Szórakozás",{"v":400,"d":"400 Ft"},{"v":358,"d":"358 Ft"},{"v":42,"d":"42 Ft"}]
[]
[{"$nulls":10},"Konačni zbir",{"v":7915,"d":"7,915 Ft"},{"v":7860,"d":"7,860 Ft"},{"v":55,"d":"55 Ft"}]

{"sheet":"Havi kiadások","index":1,"n_rows":62,"n_cols":7,"rows_kept":62}
[null,"Havi kiadások"]
[null,"Leírás","Kategória","Tervezett költség","Tényleges költség","Különbözet","Tényleges költség áttekintése"]
[null,"Iskolán kívüli tevékenységek","Gyerekek",{"v":40,"d":"40 Ft"},{"v":40,"d":"40 Ft"},{"$f":"KöltségvetésRészletei[[#This Row],[Tervezett költség]]-KöltségvetésRészletei[[#This Row],[Tényleges költség]]","v":{"v":0,"d":"0 Ft"}},{"$f":"KöltségvetésRészletei[[#This Row],[Tényleges költség]]","v":{"v":40,"d":"40 Ft"}}]
[null,"Egészségügy","Gyerekek",null,null,{"$f":"KöltségvetésRészletei[[#This Row],[Tervezett költség]]-KöltségvetésRészletei[[#This Row],[Tényleges költség]]","v":{"v":0,"d":"0 Ft"}},{"$f":"KöltségvetésRészletei[[#This Row],[Tényleges költség]]","v":{"v":0,"d":"0 Ft"}}]
[null,"Iskolai kellékek","Gyerekek",null,null,{"$f":"KöltségvetésRészletei[[#This Row],[Tervezett költség]]-KöltségvetésRészletei[[#This Row],[Tényleges költség]]","v":{"v":0,"d":"0 Ft"}},{"$f":"KöltségvetésRészletei[[#This Row],[Tényleges költség]]","v":{"v":0,"d":"0 Ft"}}]
[null,"Iskolai kiadások","Gyerekek",{"v":100,"d":"100 Ft"},{"v":100,"d":"100 Ft"},{"$f":"KöltségvetésRészletei[[#This Row],[Tervezett költség]]-KöltségvetésRészletei[[#This Row],[Tényleges költség]]","v":{"v":0,"d":"0 Ft"}},{"$f":"KöltségvetésRészletei[[#This Row],[Tényleges költség]]","v":{"v":100,"d":"100 Ft"}}]
[null,"Koncertek","Szórakozás",{"v":50,"d":"50 Ft"},{"v":40,"d":"40 Ft"},{"$f":"KöltségvetésRészletei[[#This Row],[Tervezett költség]]-KöltségvetésRészletei[[#This Row],[Tényleges költség]]","v":{"v":10,"d":"10 Ft"}},{"$f":"KöltségvetésRészletei[[#This Row],[Tényleges költség]]","v":{"v":40,"d":"40 Ft"}}]
[null,"Színház","Szórakozás",{"v":200,"d":"200 Ft"},{"v":150,"d":"150 Ft"},{"$f":"KöltségvetésRészletei[[#This Row],[Tervezett költség]]-KöltségvetésRészletei[[#This Row],[Tényleges költség]]","v":{"v":50,"d":"50 Ft"}},{"$f":"KöltségvetésRészletei[[#This Row],[Tényleges költség]]","v":{"v":150,"d":"150 Ft"}}]
[null,"Filmek","Szórakozás",{"v":50,"d":"50 Ft"},{"v":28,"d":"28 Ft"},{"$f":"KöltségvetésRészletei[[#This Row],[Tervezett költség]]-KöltségvetésRészletei[[#This Row],[Tényleges költség]]","v":{"v":22,"d":"22 Ft"}},{"$f":"KöltségvetésRészletei[[#This Row],[Tényleges költség]]","v":{"v":28,"d":"28 Ft"}}]
[null,"Zene (CD-k, letöltések stb.)","Szórakozás",{"v":50,"d":"50 Ft"},{"v":30,"d":"30 Ft"},{"$f":"KöltségvetésRészletei[[#This Row],[Tervezett költség]]-KöltségvetésRészletei[[#This Row],[Tényleges költség]]","v":{"v":20,"d":"20 Ft"}},{"$f":"KöltségvetésRészletei[[#This Row],[Tényleges költség]]","v":{"v":30,"d":"30 Ft"}}]
[null,"Sportesemények","Szórakozás",{"v":0,"d":"0 Ft"},{"v":40,"d":"40 Ft"},{"$f":"KöltségvetésRészletei[[#This Row],[Tervezett költség]]-KöltségvetésRészletei[[#This Row],[Tényleges költség]]","v":{"v":-40,"d":"-40 Ft"}},{"$f":"KöltségvetésRészletei[[#This Row],[Tényleges költség]]","v":{"v":40,"d":"40 Ft"}}]
[null,"Videó/DVD (vásárlás)","Szórakozás",{"v":20,"d":"20 Ft"},{"v":50,"d":"50 Ft"},{"$f":"KöltségvetésRészletei[[#This Row],[Tervezett költség]]-KöltségvetésRészletei[[#This Row],[Tényleges költség]]","v":{"v":-30,"d":"-30 Ft"}},{"$f":"KöltségvetésRészletei[[#This Row],[Tényleges költség]]","v":{"v":50,"d":"50 Ft"}}]
[null,"Videó/DVD (kölcsönzés)","Szórakozás",{"v":30,"d":"30 Ft"},{"v":20,"d":"20 Ft"},{"$f":"KöltségvetésRészletei[[#This Row],[Tervezett költség]]-KöltségvetésRészletei[[#This Row],[Tényleges költség]]","v":{"v":10,"d":"10 Ft"}},{"$f":"KöltségvetésRészletei[[#This Row],[Tényleges költség]]","v":{"v":20,"d":"20 Ft"}}]
[null,"Étterem","Étel",{"v":1000,"d":"1,000 Ft"},{"v":1200,"d":"1,200 Ft"},{"$f":"KöltségvetésRészletei[[#This Row],[Tervezett költség]]-KöltségvetésRészletei[[#This Row],[Tényleges költség]]","v":{"v":-200,"d":"-200 Ft"}},{"$f":"KöltségvetésRészletei[[#This Row],[Tényleges költség]]","v":{"v":1200,"d":"1,200 Ft"}}]
[null,"Bevásárlás","Étel",{"v":100,"d":"100 Ft"},{"v":120,"d":"120 Ft"},{"$f":"KöltségvetésRészletei[[#This Row],[Tervezett költség]]-KöltségvetésRészletei[[#This Row],[Tényleges költség]]","v":{"v":-20,"d":"-20 Ft"}},{"$f":"KöltségvetésRészletei[[#This Row],[Tényleges költség]]","v":{"v":120,"d":"120 Ft"}}]
[null,"Jótékonyság 1","Ajándék és jótékonyság",{"v":75,"d":"75 Ft"},{"v":100,"d":"100 Ft"},{"$f":"KöltségvetésRészletei[[#This Row],[Tervezett költség]]-KöltségvetésRészletei[[#This Row],[Tényleges költség]]","v":{"v":-25,"d":"-25 Ft"}},{"$f":"KöltségvetésRészletei[[#This Row],[Tényleges költség]]","v":{"v":100,"d":"100 Ft"}}]
[null,"Jótékonyság 2","Ajándék és jótékonyság",{"v":25,"d":"25 Ft"},{"v":25,"d":"25 Ft"},{"$f":"KöltségvetésRészletei[[#This Row],[Tervezett költség]]-KöltségvetésRészletei[[#This Row],[Tényleges költség]]","v":{"v":0,"d":"0 Ft"}},{"$f":"KöltségvetésRészletei[[#This Row],[Tényleges költség]]","v":{"v":25,"d":"25 Ft"}}]
[null,"Ajándék 1","Ajándék és jótékonyság",null,null,{"$f":"KöltségvetésRészletei[[#This Row],[Tervezett költség]]-KöltségvetésRészletei[[#This Row],[Tényleges költség]]","v":{"v":0,"d":"0 Ft"}},{"$f":"KöltségvetésRészletei[[#This Row],[Tényleges költség]]","v":{"v":0,"d":"0 Ft"}}]
[null,"Ajándék 2","Ajándék és jótékonyság",null,null,{"$f":"KöltségvetésRészletei[[#This Row],[Tervezett költség]]-KöltségvetésRészletei[[#This Row],[Tényleges költség]]","v":{"v":0,"d":"0 Ft"}},{"$f":"KöltségvetésRészletei[[#This Row],[Tényleges költség]]","v":{"v":0,"d":"0 Ft"}}]
[null,"Kábel/műhold","Szállás",{"v":100,"d":"100 Ft"},{"v":100,"d":"100 Ft"},{"$f":"KöltségvetésRészletei[[#This Row],[Tervezett költség]]-KöltségvetésRészletei[[#This Row],[Tényleges költség]]","v":{"v":0,"d":"0 Ft"}},{"$f":"KöltségvetésRészletei[[#This Row],[Tényleges költség]]","v":{"v":100,"d":"100 Ft"}}]
[null,"Áram","Szállás",{"v":45,"d":"45 Ft"},{"v":50,"d":"50 Ft"},{"$f":"KöltségvetésRészletei[[#This Row],[Tervezett költség]]-KöltségvetésRészletei[[#This Row],[Tényleges költség]]","v":{"v":-5,"d":"-5 Ft"}},{"$f":"KöltségvetésRészletei[[#This Row],[Tényleges költség]]","v":{"v":50,"d":"50 Ft"}}]
[null,"Gáz","Szállás",{"v":300,"d":"300 Ft"},{"v":400,"d":"400 Ft"},{"$f":"KöltségvetésRészletei[[#This Row],[Tervezett költség]]-KöltségvetésRészletei[[#This Row],[Tényleges költség]]","v":{"v":-100,"d":"-100 Ft"}},{"$f":"KöltségvetésRészletei[[#This Row],[Tényleges költség]]","v":{"v":400,"d":"400 Ft"}}]
[null,"Takarítószolgálat","Szállás",{"v":200,"d":"200 Ft"},null,{"$f":"KöltségvetésRészletei[[#This Row],[Tervezett költség]]-KöltségvetésRészletei[[#This Row],[Tényleges költség]]","v":{"v":200,"d":"200 Ft"}},{"$f":"KöltségvetésRészletei[[#This Row],[Tényleges költség]]","v":{"v":0,"d":"0 Ft"}}]
[null,"Karbantartás","Szállás",{"v":200,"d":"200 Ft"},{"v":150,"d":"150 Ft"},{"$f":"KöltségvetésRészletei[[#This Row],[Tervezett költség]]-KöltségvetésRészletei[[#This Row],[Tényleges költség]]","v":{"v":50,"d":"50 Ft"}},{"$f":"KöltségvetésRészletei[[#This Row],[Tényleges költség]]","v":{"v":150,"d":"150 Ft"}}]
[null,"Jelzálog vagy bérleti díj","Szállás",{"v":1700,"d":"1,700 Ft"},{"v":1700,"d":"1,700 Ft"},{"$f":"KöltségvetésRészletei[[#This Row],[Tervezett költség]]-KöltségvetésRészletei[[#This Row],[Tényleges költség]]","v":{"v":0,"d":"0 Ft"}},{"$f":"KöltségvetésRészletei[[#This Row],[Tényleges költség]]","v":{"v":1700,"d":"1,700 Ft"}}]
[null,"Földgáz/olaj","Szállás",null,null,{"$f":"KöltségvetésRészletei[[#This Row],[Tervezett költség]]-KöltségvetésRészletei[[#This Row],[Tényleges költség]]","v":{"v":0,"d":"0 Ft"}},{"$f":"KöltségvetésRészletei[[#This Row],[Tényleges költség]]","v":{"v":0,"d":"0 Ft"}}]
[null,"Online/internetszolgáltatás","Szállás",{"v":100,"d":"100 Ft"},{"v":100,"d":"100 Ft"},{"$f":"KöltségvetésRészletei[[#This Row],[Tervezett költség]]-KöltségvetésRészletei[[#This Row],[Tényleges költség]]","v":{"v":0,"d":"0 Ft"}},{"$f":"KöltségvetésRészletei[[#This Row],[Tényleges költség]]","v":{"v":100,"d":"100 Ft"}}]
[null,"Telefon (mobil)","Szállás",{"v":60,"d":"60 Ft"},{"v":60,"d":"60 Ft"},{"$f":"KöltségvetésRészletei[[#This Row],[Tervezett költség]]-KöltségvetésRészletei[[#This Row],[Tényleges költség]]","v":{"v":0,"d":"0 Ft"}},{"$f":"KöltségvetésRészletei[[#This Row],[Tényleges költség]]","v":{"v":60,"d":"60 Ft"}}]
[null,"Telefon (otthoni)","Szállás",{"v":35,"d":"35 Ft"},{"v":39,"d":"39 Ft"},{"$f":"KöltségvetésRészletei[[#This Row],[Tervezett költség]]-KöltségvetésRészletei[[#This Row],[Tényleges költség]]","v":{"v":-4,"d":"-4 Ft"}},{"$f":"KöltségvetésRészletei[[#This Row],[Tényleges költség]]","v":{"v":39,"d":"39 Ft"}}]
[null,"Kellékek","Szállás",{"v":40,"d":"40 Ft"},{"v":55,"d":"55 Ft"},{"$f":"KöltségvetésRészletei[[#This Row],[Tervezett költség]]-KöltségvetésRészletei[[#This Row],[Tényleges költség]]","v":{"v":-15,"d":"-15 Ft"}},{"$f":"KöltségvetésRészletei[[#This Row],[Tényleges költség]]","v":{"v":55,"d":"55 Ft"}}]
[null,"Szemétdíj és szelektív hulladékgyűjtés","Szállás",{"v":25,"d":"25 Ft"},{"v":22,"d":"22 Ft"},{"$f":"KöltségvetésRészletei[[#This Row],[Tervezett költség]]-KöltségvetésRészletei[[#This Row],[Tényleges költség]]","v":{"v":3,"d":"3 Ft"}},{"$f":"KöltségvetésRészletei[[#This Row],[Tényleges költség]]","v":{"v":22,"d":"22 Ft"}}]
[null,"Víz és csatornázás","Szállás",{"v":25,"d":"25 Ft"},{"v":26,"d":"26 Ft"},{"$f":"KöltségvetésRészletei[[#This Row],[Tervezett költség]]-KöltségvetésRészletei[[#This Row],[Tényleges költség]]","v":{"v":-1,"d":"-1 Ft"}},{"$f":"KöltségvetésRészletei[[#This Row],[Tényleges költség]]","v":{"v":26,"d":"26 Ft"}}]
[null,"Egészség","Biztosítás",{"v":400,"d":"400 Ft"},{"v":400,"d":"400 Ft"},{"$f":"KöltségvetésRészletei[[#This Row],[Tervezett költség]]-KöltségvetésRészletei[[#This Row],[Tényleges költség]]","v":{"v":0,"d":"0 Ft"}},{"$f":"KöltségvetésRészletei[[#This Row],[Tényleges költség]]","v":{"v":400,"d":"400 Ft"}}]
[null,"Otthon","Biztosítás",{"v":400,"d":"400 Ft"},{"v":400,"d":"400 Ft"},{"$f":"KöltségvetésRészletei[[#This Row],[Tervezett költség]]-KöltségvetésRészletei[[#This Row],[Tényleges költség]]","v":{"v":0,"d":"0 Ft"}},{"$f":"KöltségvetésRészletei[[#This Row],[Tényleges költség]]","v":{"v":400,"d":"400 Ft"}}]
[null,"Élet","Biztosítás",{"v":100,"d":"100 Ft"},{"v":100,"d":"100 Ft"},{"$f":"KöltségvetésRészletei[[#This Row],[Tervezett költség]]-KöltségvetésRészletei[[#This Row],[Tényleges költség]]","v":{"v":0,"d":"0 Ft"}},{"$f":"KöltségvetésRészletei[[#This Row],[Tényleges költség]]","v":{"v":100,"d":"100 Ft"}}]
[null,"Hitelkártya 1","Hitelek",{"v":200,"d":"200 Ft"},{"v":200,"d":"200 Ft"},{"$f":"KöltségvetésRészletei[[#This Row],[Tervezett költség]]-KöltségvetésRészletei[[#This Row],[Tényleges költség]]","v":{"v":0,"d":"0 Ft"}},{"$f":"KöltségvetésRészletei[[#This Row],[Tényleges költség]]","v":{"v":200,"d":"200 Ft"}}]
[null,"Hitelkártya 2","Hitelek",null,null,{"$f":"KöltségvetésRészletei[[#This Row],[Tervezett költség]]-KöltségvetésRészletei[[#This Row],[Tényleges költség]]","v":{"v":0,"d":"0 Ft"}},{"$f":"KöltségvetésRészletei[[#This Row],[Tényleges költség]]","v":{"v":0,"d":"0 Ft"}}]
[null,"Hitelkártya 3","Hitelek",null,null,{"$f":"KöltségvetésRészletei[[#This Row],[Tervezett költség]]-KöltségvetésRészletei[[#This Row],[Tényleges költség]]","v":{"v":0,"d":"0 Ft"}},{"$f":"KöltségvetésRészletei[[#This Row],[Tényleges költség]]","v":{"v":0,"d":"0 Ft"}}]
[null,"Személyes","Hitelek",null,null,{"$f":"KöltségvetésRészletei[[#This Row],[Tervezett költség]]-KöltségvetésRészletei[[#This Row],[Tényleges költség]]","v":{"v":0,"d":"0 Ft"}},{"$f":"KöltségvetésRészletei[[#This Row],[Tényleges költség]]","v":{"v":0,"d":"0 Ft"}}]
[null,"Diák","Hitelek",null,null,{"$f":"KöltségvetésRészletei[[#This Row],[Tervezett költség]]-KöltségvetésRészletei[[#This Row],[Tényleges költség]]","v":{"v":0,"d":"0 Ft"}},{"$f":"KöltségvetésRészletei[[#This Row],[Tényleges költség]]","v":{"v":0,"d":"0 Ft"}}]
[null,"Ruhanemű","Kozmetikumok",{"v":150,"d":"150 Ft"},{"v":140,"d":"140 Ft"},{"$f":"KöltségvetésRészletei[[#This Row],[Tervezett költség]]-KöltségvetésRészletei[[#This Row],[Tényleges költség]]","v":{"v":10,"d":"10 Ft"}},{"$f":"KöltségvetésRészletei[[#This Row],[Tényleges költség]]","v":{"v":140,"d":"140 Ft"}}]
[null,"Tisztító","Kozmetikumok",null,null,{"$f":"KöltségvetésRészletei[[#This Row],[Tervezett költség]]-KöltségvetésRészletei[[#This Row],[Tényleges költség]]","v":{"v":0,"d":"0 Ft"}},{"$f":"KöltségvetésRészletei[[#This Row],[Tényleges költség]]","v":{"v":0,"d":"0 Ft"}}]
[null,"Haj- és körömápolás","Kozmetikumok",null,null,{"$f":"KöltségvetésRészletei[[#This Row],[Tervezett költség]]-KöltségvetésRészletei[[#This Row],[Tényleges költség]]","v":{"v":0,"d":"0 Ft"}},{"$f":"KöltségvetésRészletei[[#This Row],[Tényleges költség]]","v":{"v":0,"d":"0 Ft"}}]
[null,"Egészségklub","Kozmetikumok",null,null,{"$f":"KöltségvetésRészletei[[#This Row],[Tervezett költség]]-KöltségvetésRészletei[[#This Row],[Tényleges költség]]","v":{"v":0,"d":"0 Ft"}},{"$f":"KöltségvetésRészletei[[#This Row],[Tényleges költség]]","v":{"v":0,"d":"0 Ft"}}]
[null,"Egészségügy","Kozmetikumok",null,null,{"$f":"KöltségvetésRészletei[[#This Row],[Tervezett költség]]-KöltségvetésRészletei[[#This Row],[Tényleges költség]]","v":{"v":0,"d":"0 Ft"}},{"$f":"KöltségvetésRészletei[[#This Row],[Tényleges költség]]","v":{"v":0,"d":"0 Ft"}}]
[null,"Étel","Háziállatok",{"v":150,"d":"150 Ft"},{"v":75,"d":"75 Ft"},{"$f":"KöltségvetésRészletei[[#This Row],[Tervezett költség]]-KöltségvetésRészletei[[#This Row],[Tényleges költség]]","v":{"v":75,"d":"75 Ft"}},{"$f":"KöltségvetésRészletei[[#This Row],[Tényleges költség]]","v":{"v":75,"d":"75 Ft"}}]
[null,"Ápolás","Háziállatok",{"v":20,"d":"20 Ft"},{"v":25,"d":"25 Ft"},{"$f":"KöltségvetésRészletei[[#This Row],[Tervezett költség]]-KöltségvetésRészletei[[#This Row],[Tényleges költség]]","v":{"v":-5,"d":"-5 Ft"}},{"$f":"KöltségvetésRészletei[[#This Row],[Tényleges költség]]","v":{"v":25,"d":"25 Ft"}}]
[null,"Egészségügy","Háziállatok",null,null,{"$f":"KöltségvetésRészletei[[#This Row],[Tervezett költség]]-KöltségvetésRészletei[[#This Row],[Tényleges költség]]","v":{"v":0,"d":"0 Ft"}},{"$f":"KöltségvetésRészletei[[#This Row],[Tényleges költség]]","v":{"v":0,"d":"0 Ft"}}]
[null,"Játékok","Háziállatok",null,null,{"$f":"KöltségvetésRészletei[[#This Row],[Tervezett költség]]-KöltségvetésRészletei[[#This Row],[Tényleges költség]]","v":{"v":0,"d":"0 Ft"}},{"$f":"KöltségvetésRészletei[[#This Row],[Tényleges költség]]","v":{"v":0,"d":"0 Ft"}}]
[null,"Befektetési számla","Megtakarítások és befektetések",{"v":200,"d":"200 Ft"},{"v":200,"d":"200 Ft"},{"$f":"KöltségvetésRészletei[[#This Row],[Tervezett költség]]-KöltségvetésRészletei[[#This Row],[Tényleges költség]]","v":{"v":0,"d":"0 Ft"}},{"$f":"KöltségvetésRészletei[[#This Row],[Tényleges költség]]","v":{"v":200,"d":"200 Ft"}}]
[null,"Nyugdíjszámla","Megtakarítások és befektetések",null,null,{"$f":"KöltségvetésRészletei[[#This Row],[Tervezett költség]]-KöltségvetésRészletei[[#This Row],[Tényleges költség]]","v":{"v":0,"d":"0 Ft"}},{"$f":"KöltségvetésRészletei[[#This Row],[Tényleges költség]]","v":{"v":0,"d":"0 Ft"}}]
[null,"Szövetségi","Adók",{"v":300,"d":"300 Ft"},{"v":300,"d":"300 Ft"},{"$f":"KöltségvetésRészletei[[#This Row],[Tervezett költség]]-KöltségvetésRészletei[[#This Row],[Tényleges költség]]","v":{"v":0,"d":"0 Ft"}},{"$f":"KöltségvetésRészletei[[#This Row],[Tényleges költség]]","v":{"v":300,"d":"300 Ft"}}]
[null,"Helyi","Adók",null,null,{"$f":"KöltségvetésRészletei[[#This Row],[Tervezett költség]]-KöltségvetésRészletei[[#This Row],[Tényleges költség]]","v":{"v":0,"d":"0 Ft"}},{"$f":"KöltségvetésRészletei[[#This Row],[Tényleges költség]]","v":{"v":0,"d":"0 Ft"}}]
[null,"Állami","Adók",null,null,{"$f":"KöltségvetésRészletei[[#This Row],[Tervezett költség]]-KöltségvetésRészletei[[#This Row],[Tényleges költség]]","v":{"v":0,"d":"0 Ft"}},{"$f":"KöltségvetésRészletei[[#This Row],[Tényleges költség]]","v":{"v":0,"d":"0 Ft"}}]
[null,"Busz/taxi","Közlekedés",{"v":100,"d":"100 Ft"},{"v":150,"d":"150 Ft"},{"$f":"KöltségvetésRészletei[[#This Row],[Tervezett költség]]-KöltségvetésRészletei[[#This Row],[Tényleges költség]]","v":{"v":-50,"d":"-50 Ft"}},{"$f":"KöltségvetésRészletei[[#This Row],[Tényleges költség]]","v":{"v":150,"d":"150 Ft"}}]
[null,"Üzemanyag","Közlekedés",{"v":450,"d":"450 Ft"},{"v":400,"d":"400 Ft"},{"$f":"KöltségvetésRészletei[[#This Row],[Tervezett költség]]-KöltségvetésRészletei[[#This Row],[Tényleges költség]]","v":{"v":50,"d":"50 Ft"}},{"$f":"KöltségvetésRészletei[[#This Row],[Tényleges költség]]","v":{"v":400,"d":"400 Ft"}}]
[null,"Biztosítás","Közlekedés",{"v":300,"d":"300 Ft"},{"v":300,"d":"300 Ft"},{"$f":"KöltségvetésRészletei[[#This Row],[Tervezett költség]]-KöltségvetésRészletei[[#This Row],[Tényleges költség]]","v":{"v":0,"d":"0 Ft"}},{"$f":"KöltségvetésRészletei[[#This Row],[Tényleges költség]]","v":{"v":300,"d":"300 Ft"}}]
[null,"Engedélyek ","Közlekedés",{"v":25,"d":"25 Ft"},{"v":25,"d":"25 Ft"},{"$f":"KöltségvetésRészletei[[#This Row],[Tervezett költség]]-KöltségvetésRészletei[[#This Row],[Tényleges költség]]","v":{"v":0,"d":"0 Ft"}},{"$f":"KöltségvetésRészletei[[#This Row],[Tényleges költség]]","v":{"v":25,"d":"25 Ft"}}]
[null,"Karbantartás","Közlekedés",{"v":100,"d":"100 Ft"},{"v":50,"d":"50 Ft"},{"$f":"KöltségvetésRészletei[[#This Row],[Tervezett költség]]-KöltségvetésRészletei[[#This Row],[Tényleges költség]]","v":{"v":50,"d":"50 Ft"}},{"$f":"KöltségvetésRészletei[[#This Row],[Tényleges költség]]","v":{"v":50,"d":"50 Ft"}}]
[null,"Parkolási díjak","Közlekedés",null,null,{"$f":"KöltségvetésRészletei[[#This Row],[Tervezett költség]]-KöltségvetésRészletei[[#This Row],[Tényleges költség]]","v":{"v":0,"d":"0 Ft"}},{"$f":"KöltségvetésRészletei[[#This Row],[Tényleges költség]]","v":{"v":0,"d":"0 Ft"}}]
[null,"Autó törlesztése","Közlekedés",{"v":450,"d":"450 Ft"},{"v":450,"d":"450 Ft"},{"$f":"KöltségvetésRészletei[[#This Row],[Tervezett költség]]-KöltségvetésRészletei[[#This Row],[Tényleges költség]]","v":{"v":0,"d":"0 Ft"}},{"$f":"KöltségvetésRészletei[[#This Row],[Tényleges költség]]","v":{"v":450,"d":"450 Ft"}}]
[null,"Összeg",null,{"$f":"SUBTOTAL(109,KöltségvetésRészletei[Tervezett költség])","v":{"v":7915,"d":"7,915 Ft"}},{"$f":"SUBTOTAL(109,KöltségvetésRészletei[Tényleges költség])","v":{"v":7860,"d":"7,860 Ft"}},{"$f":"SUBTOTAL(109,KöltségvetésRészletei[Különbözet])","v":{"v":55,"d":"55 Ft"}}]

{"sheet":"További adatok","index":2,"n_rows":15,"n_cols":5,"rows_kept":15}
[null,"A Költségvetés áttekintése diagramhoz tartozó kimutatás",null,null,"Keresési lista a költségvetés részleteinek kategóriájához"]
[null,"Kategória","Költség",null,"Költségvetési kategória keresése"]
[null,"Gyerekek",140,null,"Adók"]
[null,"Szórakozás",358,null,"Ajándék és jótékonyság"]
[null,"Étel",1320,null,"Biztosítás"]
[null,"Ajándék és jótékonyság",125,null,"Étel"]
[null,"Szállás",2702,null,"Gyerekek"]
[null,"Biztosítás",900,null,"Háziállatok"]
[null,"Hitelek",200,null,"Hitelek"]
[null,"Kozmetikumok",140,null,"Kozmetikumok"]
[null,"Háziállatok",100,null,"Közlekedés"]
[null,"Megtakarítások és befektetések",200,null,"Megtakarítások és befektetések"]
[null,"Adók",300,null,"Szállás"]
[null,"Közlekedés",1375,null,"Szórakozás"]
[null,"Konačni zbir",7860]